Cogmind - Beta 13 @@@ ROGUE MODE // 2024.04.10 @ 08:31:09 Player: Jennifer Result: Destroyed by D-53 Grenadier with Mini Grenade Launcher Performance ------------- Evolutions (0) 0 Regions Visited (2) 400 Robots Destroyed (17) 85 Value Destroyed (273) 273 Prototype IDs (4) 80 Alien Tech Used (0) 0 Bonus (-53) -53 TOTAL SCORE: 785 Bonus ------- Friendly Fire -53 Cogmind --------- Core Integrity 0/250 Matter 36/300 Energy 100/100 System Corruption 0% Temperature Cool (0) Movement Core (50) Location -10/Mines Parts ------- > --- POWER (1) -------- (None) > --- PROPULSION (2) --- (None) > --- UTILITY (2) ------ (None) > --- WEAPON (2) ------- (None) > --- INVENTORY (5) ---- Signal Interpreter Light Armor Plating Light Armor Plating Plasma Cutter Peak State ------------ > --- POWER ------------ Ion Engine > --- PROPULSION ------- Wheel Compact Wheel > --- UTILITY ---------- Small Storage Unit Seismic Detector > --- WEAPON ----------- Heavy Assault Rifle Heavy Assault Rifle > --- INVENTORY -------- Ion Engine Light Treads Light Treads Wheel Improved Terrain Scanner Light Assault Rifle Heavy Assault Rifle Mining Laser [Rating: 10] Favorites ----------- Power Ion Engine Engine Ion Engine Propulsion Wheel Wheel Wheel Utility Seismic Detector Device Seismic Detector Storage Small Storage Unit Weapon Heavy Assault Rifle Ballistic Gun Heavy Assault Rifle Launcher Grenade Launcher Special Weapon Mining Laser Build | -11 -10 -10 ------- Run | Yrd Mat Min Slots Evolved . | . . . Power . | . . . Propulsion . | . . . Utility . | . . . Weapon . | . . . Parts Attached 17 | 7 5 5 Power 2 | 1 . 1 Engine 2 | 1 . 1 Core . | . . . Reactor . | . . . Propulsion 4 | 2 1 1 Treads . | . . . Leg . | . . . Wheel 4 | 2 1 1 Hover . | . . . Flight . | . . . Utility 3 | 2 1 . Device 1 | 1 . . Storage 2 | 1 1 . Processor . | . . . Hackware . | . . . Protection . | . . . Artifact . | . . . Weapon 8 | 2 3 3 Energy Gun . | . . . Energy Cannon . | . . . Ballistic Gun 5 | 1 3 1 Ballistic Cannon . | . . . Launcher 2 | . . 2 Special Weapon 1 | 1 . . Impact Weapon . | . . . Slashing Weapon . | . . . Piercing Weapon . | . . . Special Melee Weapon . | . . . Unidentified Prototypes . | . . . Parts Lost 8 | . . 8 Power 2 | . . 2 Propulsion 1 | . . 1 Utility 1 | . . 1 Weapon 4 | . . 4 Highest Loss Streak 7 | . . 7 To Critical Strikes . | . . . Average Slot Usage (%) 98 | . 100 86 Engine 13 | . 14 12 Wheel 27 | . 28 24 Device 13 | . 14 9 Storage 13 | . 14 12 Ballistic Gun 25 | . 27 12 Launcher 1 | . . 11 Naked Turns 5 | . . 5 Heaviest Build 32 | 13 32 32 Greatest Support 26 | 26 26 20 Greatest Overweight (x) 1 | . 1 1 Average Overweight (x) . | . . . Largest Inventory Capacity 15 | 8 15 15 Average Capacity 9 | 7 8 14 Most Carried 8 | 5 8 8 Average Carried 7 | 2 7 6 Final Capacity 15 | 8 15 5 Final Carried 8 | 5 8 4 Class Distribution -------------------- 100% | Mutant Dominant Class ---------------- Mutant | -10/Materials Mutant | -10/Mines Resources | -11 -10 -10 ----------- Run | Yrd Mat Min Matter Collected 375 | 227 146 2 Remotely . | . . . Salvage Created 355 | 29 245 81 Parts 32 | 5 21 6 Haulers Intercepted . | . . . Recyclers Shooed 3 | . 2 1 Parts Field Recycled . | . . . Retrieved Matter . | . . . Parts Self-Destructed . | . . . Prevented . | . . . Kills | -11 -10 -10 ------- Run | Yrd Mat Min Combat Hostiles Destroyed 21 | . 9 12 Guns 10 | . 9 1 AOE 11 | . . 11 Classes Destroyed 7 | 1 3 3 Worker 2 | . 2 . Tunneler 1 | 1 . . Recycler 1 | . . 1 Swarmer 9 | . 6 3 Grunt 3 | . 3 . Demolisher 1 | . . 1 Assembled 8 | . . 8 Best Kill Streak 8 | 1 6 8 Combat Bots Only 8 | . 5 8 Max Kills in Single Turn 3 | 1 1 3 Gunslinging . | . . . Exploded 3 | . . 3 Melee . | . . . Uniques/NPCs Destroyed . | . . . Combat | -11 -10 -10 -------- Run | Yrd Mat Min Hostile Shots Fired 77 | . 25 52 Missed 26 | . 6 20 Damage Taken 980 | . 187 793 Core 250 | . 29 221 Absorbed by Shields . | . . . Core Remaining (%) 100 | 100 . . Volleys Fired 52 | 10 23 19 Largest 2 | 1 2 2 Hottest 53 | 20 46 53 Shots Fired 77 | 10 46 21 Gun 63 | 10 46 7 Cannon . | . . . Launcher 14 | . . 14 Special . | . . . Kinetic 63 | 10 46 7 Thermal . | . . . Explosive 14 | . . 14 Electromagnetic . | . . . Robot Hit Streak 11 | 4 11 3 Robot Miss Streak 5 | 2 5 1 Penetration Max . | . . . Secondary Targets . | . . . Shots Hit Robots 38 | 7 25 6 Core Hits 45 | 2 13 30 Critical Kills . | . . . Critical Parts Destroyed . | . . . Critical Strikes . | . . . Melee Attacks . | . . . Impact . | . . . Slashing . | . . . Piercing . | . . . Sneak Attacks . | . . . Combat Hostiles . | . . . Follow-up Attacks . | . . . Damage Inflicted 1310 | 57 351 902 Guns 465 | 57 351 57 Cannons . | . . . Explosions 845 | . . 845 Melee . | . . . Ramming . | . . . Kinetic 465 | 57 351 57 Thermal . | . . . Explosive 845 | . . 845 Electromagnetic . | . . . Impact . | . . . Slashing . | . . . Piercing . | . . . Highest Corruption . | . . . Average Corruption . | . . . Corruption Purged . | . . . Corruption Blocked . | . . . Overload Shots . | . . . Overflow Damage 9 | . . 9 Projectiles . | . . . Explosions 9 | . . 9 Melee . | . . . Knockbacks . | . . . Impact . | . . . Kinetic . | . . . Secondary . | . . . Self-Inflicted Damage 48 | . . 48 Shots 2 | . . 2 Rammed . | . . . Targets Rammed . | . . . Kicked . | . . . Crushed . | . . . Highest Temperature 22 | . 22 . Average Temperature 15 | . 15 . Received Heat Transfer 60 | . 60 . Siege Activations . | . . . Robots Corrupted . | . . . Combat Hostiles . | . . . Parts Fried . | . . . Impact Corruptions . | . . . Robots Melted . | . . . Combat Hostiles . | . . . Parts Melted . | . . . Heat Transferred . | . . . Parts Sabotaged . | . . . Parts Stolen . | . . . Parts Stripped . | . . . Power Chain Reactions . | . . . Alert | -11 -10 -10 ------- Run | Yrd Mat Min Peak Influence 264 | 5 264 147 Initial 49 | . 3 49 Average 120 | 1 130 123 Maximum Alert Level 1 | . 1 . Low Security (%) 75 | 100 69 100 Level 1 24 | . 30 . Level 2 . | . . . Level 3 . | . . . Level 4 . | . . . Level 5 . | . . . High Security . | . . . Max Security . | . . . Squads Dispatched 1 | . 1 . Investigation . | . . . Extermination . | . . . Reinforcement 1 | . 1 . Assault . | . . . Garrison . | . . . Intercept . | . . . Searches Triggered . | . . . Construction Impeded . | . . . Haulers Reinforced . | . . . Active Scanning Responses . | . . . Cargo Convoy Interrupts . | . . . Stealth | -11 -10 -10 --------- Run | Yrd Mat Min Distress Signals 3 | . 3 . Communications Jammed . | . . . Distress Signals . | . . . Times Spotted 42 | . 18 24 Peak Tracking Total 13 | . 8 13 Tactical Retreats 3 | . 3 . Traps | -11 -10 -10 ------- Run | Yrd Mat Min Traps Triggered . | . . . Indirectly . | . . . Trap Hack Attempts . | . . . Triggered . | . . . Disarmed . | . . . Reprogrammed . | . . . Reused . | . . . Traps Extracted . | . . . Installed . | . . . Triggered . | . . . Machines | -11 -10 -10 ---------- Run | Yrd Mat Min Machines Disabled . | . . . Max in Single Turn . | . . . Machines Repaired . | . . . Machines Dismantled . | . . . Machines Sabotaged . | . . . Overloaded Fab Kills . | . . . Hacking | -11 -10 -10 --------- Run | Yrd Mat Min Machines Accessed 7 | . 7 . Terminals 7 | . 7 . Fabricators . | . . . Repair Stations . | . . . Recycling Units . | . . . Scanalyzers . | . . . Garrison Access . | . . . Total Hacks 23 | . 23 . Successful 16 | . 16 . Failed 7 | . 7 . Catastrophic 1 | . 1 . Database Lockouts . | . . . Manual 11 | . 11 . Terminals 23 | . 23 . Fabricators . | . . . Repair Stations . | . . . Recycling Units . | . . . Scanalyzers . | . . . Garrison Access . | . . . Terminal Hacks 12 | . 12 . Prototype ID Bank 2 | . 2 . Branch Access Points 2 | . 2 . Emergency Access Points 1 | . 1 . Unreport Threat 1 | . 1 . Dispatch Records 1 | . 1 . Security Status 1 | . 1 . Transport Status 1 | . 1 . Hauler Manifests 2 | . 2 . Zone Layout 1 | . 1 . Fabricator Hacks . | . . . Repair Station Hacks . | . . . Recycling Unit Hacks . | . . . Scanalyzer . | . . . Garrison Access Hacks . | . . . Unauthorized Hacks 4 | . 4 . Terminals 4 | . 4 . Botnet 4 | . 4 . Fabricators . | . . . Repair Stations . | . . . Recycling Units . | . . . Scanalyzers . | . . . Garrison Access . | . . . Data Cores Recovered . | . . . Used . | . . . Hacking Detections 6 | . 6 . Full Trace Events 1 | . 1 . Feedback Events . | . . . Feedback Blocked . | . . . Robot Schematics Acquired . | . . . Robots Built . | . . . Authchips . | . . . Time . | . . . Total Robot Build Rating . | . . . Part Schematics Acquired . | . . . Parts Built . | . . . Authchips . | . . . Time . | . . . Total Part Build Rating . | . . . Parts Repaired . | . . . Time . | . . . Parts Recycled . | . . . Recycled Matter . | . . . Retrieved Matter . | . . . Retrieved Components . | . . . Parts Scanalyzed . | . . . Part Schematics Acquired . | . . . Parts Damaged . | . . . Bothacking | -11 -10 -10 ------------ Run | Yrd Mat Min Used RIF Installer . | . . . Robots Hacked . | . . . Non-combat . | . . . Combat . | . . . Robot Hacks Applied . | . . . Relay Couplers Released . | . . . Fabnet Peak Effective % . | . . . Robots Rewired . | . . . Allies Hacked . | . . . Hacks Repelled . | . . . Allies | -11 -10 -10 -------- Run | Yrd Mat Min Total Allies . | . . . Largest Group . | . . . Highest-Rated Group . | . . . Highest-Rated Ally . | . . . Total Orders . | . . . Ally Attacks . | . . . Total Damage . | . . . Kills . | . . . Allies Corrupted . | . . . Allies Melted . | . . . Intel | -11 -10 -10 ------- Run | Yrd Mat Min Robot Analysis Total . | . . . Derelict Logs Recovered . | . . . Drone Launches . | . . . Drone Recoveries . | . . . Exploration | -11 -10 -10 ------------- Run | Yrd Mat Min Turns Passed 1073 | 76 867 130 Spaces Moved 875 | 48 742 85 Core 10 | 1 . 9 Treads . | . . . Legs . | . . . Wheels 865 | 47 742 76 Hover . | . . . Flight . | . . . Fastest Speed 50 | 50 90 50 Average Speed 91 | 89 91 90 Slowest Speed 105 | 100 105 95 Overloaded Moves . | . . . Propulsion Burnouts . | . . . Robots Hopped . | . . . Cave-ins Triggered . | . . . Exploration Rate (%) 41 | 4 94 27 Regions Visited 2 Branch Regions 1 Pre-discovered Areas . | . . . Known Exits Taken 1 | . 1 . Unknown Exits Taken 1 | 1 . . Scrap Searched . | . . . Spaces Dug 18 | . . 18 Terrain Destroyed 69 | . . 69 Melee . | . . . Projectile . | . . . AOE 69 | . . 69 Terrain Rammed . | . . . Walls Destroyed . | . . . Machines Disabled . | . . . Actions | -11 -10 -10 --------- Run | Yrd Mat Min Total 1072 | 69 887 116 Wait 107 | . 100 7 Move 873 | 47 741 85 Hop . | . . . Pick Up 13 | 5 8 . Fast Attach 8 | 7 1 . Attach 4 | . . 4 Detach 1 | . 1 . Swap 5 | . 4 1 Drop 9 | . 9 . Fire 52 | 10 23 19 Melee . | . . . Ram . | . . . Kick . | . . . Crush . | . . . Escape Stasis . | . . . Rewire . | . . . Trap . | . . . Miscellaneous . | . . . Route ------- -11/Scrapyard -10/Materials (discovered 4 exits: [*Mat x3] / *Min) -10/Mines History --------- Turn | Location | Event 11 | -11/Scrapyard | Discovered new exit (range 15) 77 | -11/Scrapyard | Entered Materials 234 | -10/Materials | Discovered new exit (range 15) 314 | -10/Materials | Build established: Mutant 555 | -10/Materials | Discovered new exit (range 13) 670 | -10/Materials | Identified exit to Mines 855 | -10/Materials | Discovered new exit (range 15) 944 | -10/Materials | Entered Mines 998 | -10/Mines | Assembled infested the area 1003 | -10/Mines | Assisted by a Guerilla fighting off Assembled 1055 | -10/Mines | Destroyed 8 combat bots 1057 | -10/Mines | Core integrity fell below 50% 1069 | -10/Mines | Released all parts (3) 1070 | -10/Mines | Core integrity fell below 20% 1074 | -10/Mines | Destroyed by D-53 Grenadier with Mini Grenade Launcher Last Messages --------------- 01036_ The unstable cave ceiling collapses. 01036_ U-05 Engineer lays Concrete. 01036_ as-35227 destroyed. 01037_ The unstable cave ceiling collapses. 01037_ LI-T0V(h) destroyed. 01037_ U-05 Engineer destroyed. 01038_ The unstable cave ceiling collapses. 01054_ Hvy. Assault Rifle destroyed. 01055_ R-06 Scavenger destroyed. 01058_ Grenade Launcher destroyed. 01059_ D-53 Grenadier destroyed. 01060_ The unstable cave ceiling collapses. 01067_ Destroyed Shock Absorption System. 01069_ Hvy. Assault Rifle destroyed. 01069_ Ion Engine destroyed. 01069_ Released Wheel. 01069_ Released Lrg. Storage Unit. 01069_ Released Wheel. 01073_ The unstable cave ceiling collapses. 01073_ U-05 Engineer builds a Wall. Map ----- +----------------------------------------------------+ | ??????????????????# #?????????????????????????? | | ??????????????? ## ??????????????????????????? | | ??????????????## #???? ????????????????????? | | ?????????????## #### ???????????????????? | | ????????????## # ???????????????????? | | ????????????? ?????????????????? | | ???????????### ????????????????? | | ???????????? # ???????????????? | | ???????????## ???????????????? | | ############ ???????????????? | | # ????????????????? | | # ######### # ! # ?????????????????? | | # ##??????#### ???????????????????? | | ##????????# %! # #????????????????????? | | #????######## u # #?????????????????????? | | #????# #?????????????????????? | | #????# ##?????????????????????? | | # #????# #### ##??????????????????????? | | ## ##????#?????# ###????????????????????? | | ??##???????????# # #?####???????????????? | | ??????????????## ### ##??????????????? | | ?????????????## # ##?????????????? | | ?????????????# % # ##????????????? | | ?????????????# !%*d ##???????????? | | ?????????????## ## = #???????????? | | ??????????????###?## @ = #???????????? | | ???????????????????# = # #???????????? | | ???????????????????# ! #???????????? | | ???????????????????# #???????????? | | ???????????????????# ## #???????????? | | ???????????????????# # #???????????? | | ???????????????????## ### #???????????? | | ????????????????????#### #?# #???????????? | | ???????????????????????## #?## ## ##???????????? | | ????????????????????????# ???###?##????????????? | | ????????????????????????# ?????????????????????? | | ????????????????????????# ?????????????????????? | | ????????????????????????## ?????????????????????? | | ?????????????????????????? ????????????????????? | | ?????????????????????????? ????????????????????? | | ??????????????????????????# ????????????????????? | | ???????????????????????????# ????????????????????? | | ?????????????????????????????????????????????????? | | ?????????????????????????????????????????????????? | | ?????????????????????????????????????????????????? | | ?????????????????????????????????????????????????? | | | | | | | | | +----------------------------------------------------+ Best States ------------- Heat Dissipation 25 Energy Generation 10 Energy Capacity 250 Matter Stores 262 Matter Capacity 300 Sight Range 16 Terrain Scan Density 10 Evasion (%) 42 Item Schematics ----------------- None Robot Schematics ------------------ None Fabricated ------------ Nothing Alien Tech Used ----------------- None Achievements -------------- None Challenges ------------ None Game ------ Seed TrapChainSystem Manual? 0 Play Time 00:15:38 Cumulative 36.2 hours Start 2024.04.10 @ 08:09:16 End 2024.04.10 @ 08:31:09 Sessions 1 Manual Loads 0 Difficulty Rogue Special Mode None Game No. 55 Rogue 55 Adventurer 0 Explorer 0 Win Type - Total 0 Types 0/0/0/0/0/0/0/0/0 Lore% 17 Gallery% 25 Achievement% 25 Wizard Run 0 Options --------- Layout 2 ASCII 0 Keyboard 1 Movement Numpad Keybinds 0 Fullscreen 2 Font 24/CogTall Map View 50x44 Zoom Use 0% Tactical HUD 1 Map Filters NONE Filters NONE Steam 1 RUN: 7efd6acb-d126-4b10-9d38-a2b974526c69